bitfinex-derivatives/quotes_ETHF0:USTF0_20250624
["timestamp","ask_amount","ask_price","bid_price","bid_amount"]
[1750806753353,25.544,2434.3,2434.2,4.91967994]
[1750806753546,0.65703,2434.1,2434.0,0.65704]
[1750806753746,26.20603,2434.1,2434.0,5.57671994]
[1750806754143,30.75524103,2434.1,2434.0,4.91967994]
[1750806754345,0.65707,2434.0,2433.7,1.3617]
[1750806754549,25.554,2433.9,2433.8,5.57678994]
[1750806755849,25.554,2433.9,2433.8,6.90178994]
[1750806757050,26.21109,2433.9,2433.8,6.90178994]
[1750806757249,25.554,2433.9,2433.8,5.57678994]
[1750806758842,26.21109,2433.9,2433.8,5.57678994]
[1750806759645,25.554,2433.9,2433.8,5.57678994]
[1750806762551,26.21109,2433.9,2433.8,5.57678994]
[1750806763151,27.28282268,2433.9,2433.8,5.57678994]
[1750806763451,26.62573268,2433.9,2433.8,5.57678994]
[1750806763648,27.28282268,2433.9,2433.8,5.57678994]
[1750806764454,29.68994127,2433.9,2433.8,5.57678994]
[1750806764654,29.68994127,2433.9,2433.8,4.91967994]
[1750806764850,29.68994127,2433.9,2433.8,5.57678994]
[1750806765552,29.68994127,2433.9,2433.8,4.91967994]
[1750806766050,29.68994127,2433.9,2433.8,4.61152453]
[1750806767250,0.65711,2433.8,2433.7,1.3617]
[1750806767452,1.72884268,2433.8,2433.7,4.61152453]
[1750806768152,1.72884268,2433.8,2433.7,5.26866453]
[1750806768855,1.72884268,2433.8,2433.7,4.61152453]
[1750806769656,1.72884268,2433.8,2433.7,5.26866453]
[1750806769853,1.72884268,2433.8,2433.7,4.61152453]
[1750806770552,0.65714,2433.7,2433.6,0.65715]
[1750806770755,29.62299127,2433.7,2433.6,0.65715]
[1750806770945,29.62299127,2433.7,2433.6,5.26867453]
[1750806772852,29.62299127,2433.7,2433.6,4.61152453]
[1750806774254,29.62299127,2433.7,2433.6,5.26869453]
[1750806774656,29.62299127,2433.7,2433.6,4.61152453]
[1750806776753,29.62299127,2433.7,2433.4,1.4072]
[1750806776955,1.72890268,2433.6,2433.5,4.61152453]
[1750806777258,0.65722,2433.4,2433.3,2.06363]
[1750806777562,27.17495268,2433.4,2433.3,2.06363]
[1750806777750,27.17495268,2433.4,2433.3,6.67515453]
[1750806779456,27.17495268,2433.4,2433.3,6.01792453]
[1750806779659,28.16080268,2433.4,2433.0,3.86512]
[1750806779856,0.65736,2432.9,2432.8,2.01867]
[1750806780065,3.06447859,2432.9,2432.8,6.63019453]
[1750806780260,3.06447859,2432.9,2432.8,5.97282453]
[1750806780454,4.13867757,2432.9,2432.8,5.97282453]
[1750806780659,4.13867757,2432.9,2432.3,1.4399]
[1750806780660,3.48131757,2432.9,2432.3,1.4399]
[1750806780858,7.83419898,2432.8,2432.4,6.63029453]
[1750806781060,0.65744,2432.6,2432.5,4.61152453]
[1750806781258,1.07419898,2432.6,2432.5,5.26898453]
[1750806781561,1.73163898,2432.6,2432.5,5.26898453]
[1750806781759,1.07419898,2432.6,2432.5,5.26898453]
[1750806782061,2.40711859,2432.9,2432.8,0.65738]
[1750806782255,4.13826436,2432.9,2432.8,0.65738]
[1750806782457,4.13826436,2432.9,2432.8,5.26890453]
[1750806783365,3.48090436,2432.9,2432.8,5.26890453]
[1750806784061,4.13826436,2432.9,2432.8,4.61152453]
[1750806784858,3.48090436,2432.9,2432.8,5.26890453]
[1750806785053,3.48090436,2432.9,2432.8,4.61152453]
[1750806785054,4.13826436,2432.9,2432.8,4.61152453]
[1750806785257,4.13826436,2432.9,2432.8,5.26890453]
[1750806785861,3.48090436,2432.9,2432.8,5.26890453]
[1750806786257,27.86111859,2432.9,2432.8,5.26890453]
[1750806786456,28.93168213,2432.9,2432.8,5.26890453]
[1750806786658,27.86111859,2432.9,2432.8,5.26890453]
[1750806787462,29.58878442,2432.9,2432.8,5.26890453]
[1750806787857,28.93142442,2432.9,2432.8,5.26890453]
[1750806788353,29.58878442,2432.9,2432.8,5.26890453]
[1750806788762,28.93142442,2432.9,2432.8,5.26890453]
[1750806788963,27.86111859,2432.9,2432.8,5.26890453]
[1750806791758,28.51847859,2432.9,2432.8,4.61152453]
[1750806791958,0.65741,2432.7,2432.6,1.99352]
[1750806792159,28.48052859,2432.7,2432.6,4.61152453]
[1750806792359,0.65746,2432.5,2432.4,1.33517]
[1750806792656,28.50157859,2432.5,2432.4,1.33517]
[1750806792855,28.50157859,2432.5,2432.4,5.94669453]
[1750806793461,27.84411859,2432.5,2432.4,5.94669453]
[1750806796867,9.75351859,2432.8,2432.7,0.6574]
[1750806797071,36.24092758,2432.8,2432.7,0.6574]
[1750806800269,1.07040899,2432.8,2432.7,5.26892453]
[1750806800463,26.06629,2433.2,2433.1,0.6573]
[1750806800663,0.6573,2433.1,2433.0,0.65731]
[1750806800859,1.72796715,2433.1,2433.0,0.65731]
[1750806801069,1.72796715,2433.1,2433.0,4.61152453]
[1750806802465,0.65733,2433.0,2432.9,1.37654]
[1750806802771,1.72799715,2433.0,2432.9,1.37654]
[1750806802971,1.72799715,2433.0,2432.9,5.98806453]
[1750806803367,1.07066715,2433.0,2432.9,5.98806453]
[1750806803673,1.72799715,2433.0,2432.9,5.98806453]
[1750806804473,1.07066715,2433.0,2432.9,5.98806453]
[1750806804871,1.72799715,2433.0,2432.9,5.98806453]
[1750806805176,1.07066715,2433.0,2432.9,5.98806453]
[1750806805576,1.72799715,2433.0,2432.9,5.98806453]
[1750806805876,1.72986172,2433.0,2432.9,5.98806453]
[1750806806077,1.07253172,2433.0,2432.9,5.98806453]
[1750806806281,0.65725,2433.3,2433.2,0.65727]
[1750806806476,1.07272809,2433.3,2433.2,5.26879453]
[1750806806976,1.07272809,2433.3,2433.2,4.96056573]
[1750806808781,7.2841172,2434.2,2433.2,4.96056573]
[1750806808782,27.81885016,2434.1,2433.6,1.09119539]
[1750806808976,33.16642084,2434.2,2434.0,0.65704]
[1750806809175,8.41943084,2434.2,2434.1,1.74822539]
[1750806809374,3.2078,2434.2,2434.1,1.74822539]
[1750806811478,6.19711084,2434.3,2433.7,0.6723]
[1750806811678,6.19711084,2434.3,2433.6,40.8]
[1750806811679,3.2078,2433.8,2432.7,6.688]
[1750806811871,4.55462084,2433.1,2432.7,3.53549539]
[1750806812071,4.55462084,2433.1,2432.9,0.65734]
[1750806812277,5.21195084,2433.1,2432.9,0.65734]
[1750806812479,5.21195084,2433.1,2433.0,1.09119539]
[1750806816679,3.2078,2433.2,2433.0,1.74852539]
[1750806816879,3.2078,2433.2,2433.1,1.09119539]
[1750806817186,3.86508,2433.2,2433.1,1.09119539]
[1750806818577,3.86507,2433.2,2433.1,1.74849539]
[1750806818983,3.86507,2433.2,2433.1,1.09119539]
[1750806819186,3.2078,2433.2,2433.1,1.74849539]
[1750806819486,3.86507,2433.2,2433.1,1.74849539]
[1750806819784,3.86507,2433.2,2433.1,1.09119539]
[1750806819985,3.86507,2433.2,2433.1,1.74849539]
[1750806820186,3.2078,2433.2,2433.1,1.74849539]
[1750806821378,3.86507,2433.2,2433.1,1.74849539]
[1750806822083,0.65727,2433.2,2433.1,1.74849539]
[1750806822283,0.65727,2433.2,2433.1,1.09119539]
[1750806822684,1.70392827,2433.2,2433.1,1.09119539]
[1750806823280,1.70392827,2433.2,2433.1,1.74849539]
[1750806828792,1.04665827,2433.2,2433.1,1.74849539]
[1750806829090,7.68986827,2433.2,2432.7,1.33659]
[1750806829292,0.65737,2432.9,2432.8,1.09119539]
[1750806829590,0.65744,2432.6,2432.5,0.65745]
[1750806829888,0.65744,2432.6,2432.5,1.74864539]
[1750806830293,0.65743,2432.7,2432.5,1.74864539]
[1750806830484,4.55462084,2432.7,2432.6,0.65744]
[1750806830984,5.21203084,2432.7,2432.6,1.74863539]
[1750806831990,7.33428,2433.2,2433.1,0.65729]
[1750806832203,33.76336744,2433.2,2433.1,0.65729]
[1750806832485,26.42908744,2433.2,2433.1,1.74848539]
[1750806833382,26.42870055,2433.2,2433.1,1.74848539]
[1750806833587,25.382,2433.2,2433.1,1.74848539]
[1750806834485,26.03927,2433.2,2433.1,1.74848539]
[1750806834785,0.65732,2433.1,2432.8,5.9498]
[1750806835094,5.21194084,2433.1,2433.0,0.65732]
[1750806835390,5.21192084,2433.1,2433.0,0.65732]
[1750806835590,5.21192084,2433.1,2433.0,1.74851539]
[1750806836792,4.55462084,2433.1,2433.0,1.74851539]
[1750806837297,5.21192084,2433.1,2433.0,1.74851539]
[1750806838196,4.55462084,2433.1,2433.0,1.74851539]
[1750806838995,25.382,2433.2,2433.1,0.6573]
[1750806839494,26.42958239,2433.2,2433.1,1.74849539]
[1750806840095,25.382,2433.2,2433.1,1.74849539]
[1750806840490,26.43023525,2433.2,2433.1,1.74849539]
[1750806840690,28.5678,2433.4,2433.3,0.65725]
[1750806840885,29.61607785,2433.4,2433.3,1.74844539]
[1750806841694,30.27329785,2433.4,2433.3,3.05824539]
[1750806841895,29.61607785,2433.4,2433.3,3.05824539]
[1750806843997,26.40827785,2433.4,2433.3,3.05824539]
[1750806844503,27.06549785,2433.4,2433.3,3.05824539]
[1750806844702,26.40827785,2433.4,2433.3,3.05824539]
[1750806845601,31.62011869,2433.4,2433.3,1.09119539]
[1750806845902,30.96289869,2433.4,2432.8,2.33041]
[1750806846108,0.65731,2433.1,2433.0,0.65731]
[1750806846309,1.70558785,2433.1,2433.0,0.65731]
[1750806846506,1.70558785,2433.1,2433.0,1.74850539]
[1750806847206,1.04827785,2433.1,2433.0,1.74850539]
[1750806848408,1.04827785,2433.1,2433.0,3.09860539]
[1750806848899,1.04827785,2433.1,2433.0,1.74850539]
[1750806849702,1.04827785,2433.1,2433.0,3.19520539]
[1750806854314,25.343,2433.3,2433.0,5.74569539]
[1750806854516,7.3342,2433.5,2433.4,0.65722]
[1750806854815,33.72704972,2433.5,2433.4,1.44019776]
[1750806855017,33.06984972,2433.5,2433.4,1.44019776]
[1750806856018,7.72684972,2433.5,2433.4,1.44019776]
[1750806856317,33.07484972,2433.5,2433.4,1.44019776]
[1750806856816,33.06784972,2433.5,2433.4,1.44019776]
[1750806858013,33.72503972,2433.5,2433.4,1.44019776]
[1750806858313,0.65722,2433.4,2433.3,1.34324]
[1750806858517,1.70706972,2433.4,2433.3,1.34324]
[1750806858718,1.70706972,2433.4,2433.3,2.43443539]
[1750806859017,1.70706972,2433.4,2433.3,1.09119539]
[1750806860321,1.70706972,2433.4,2433.3,1.74844539]
[1750806861617,1.70741884,2433.4,2433.3,1.74844539]
[1750806863514,26.36119884,2433.4,2433.3,1.74844539]
[1750806865119,27.01841884,2433.4,2433.3,1.74844539]
[1750806865323,26.36119884,2433.4,2433.3,1.09119539]
[1750806865521,27.01841884,2433.4,2433.3,0.78299431]
[1750806866219,31.57261457,2433.4,2433.3,0.78299431]
[1750806867115,27.01841884,2433.4,2433.3,1.44024431]
[1750806867520,27.01841884,2433.4,2433.3,0.78299431]
[1750806867916,0.65726,2433.3,2433.2,0.65727]
[1750806868116,1.70745884,2433.3,2433.2,0.65727]
[1750806868317,1.70744884,2433.3,2433.2,1.44026431]
[1750806868624,1.05019884,2433.3,2433.2,1.44026431]
[1750806869225,1.70744884,2433.3,2433.2,1.44026431]
[1750806870225,1.05019884,2433.3,2433.2,1.44026431]
[1750806871923,1.05019884,2433.3,2433.2,6.44026431]
[1750806872124,3.2078,2433.6,2433.2,5.78299431]
[1750806872324,3.2078,2433.6,2433.5,1.44018431]
[1750806872524,4.25852428,2433.6,2433.5,1.44018431]
[1750806873229,4.91569428,2433.6,2433.5,2.85838431]
[1750806873825,1.70789428,2433.6,2433.5,2.85838431]
[1750806874629,1.70764913,2433.6,2433.5,2.85838431]
[1750806875025,1.70764913,2433.6,2433.5,1.44018431]
[1750806875223,1.05047913,2433.6,2433.5,1.44018431]
[1750806875427,1.05047913,2433.6,2433.5,2.75158431]
[1750806875631,1.70764913,2433.6,2433.5,2.75158431]
[1750806876532,1.05047913,2433.6,2433.5,2.75158431]
[1750806878331,3.86489,2433.9,2433.8,0.65711]
[1750806878532,4.91475317,2433.9,2433.8,1.44010431]
[1750806878729,4.91475317,2433.9,2433.8,0.78299431]
[1750806878922,0.65722,2433.4,2433.3,0.7114]
[1750806879129,8.41921573,2433.4,2433.3,0.78299431]
[1750806879435,9.4690789,2433.4,2433.3,0.78299431]
[1750806880729,0.65727,2433.2,2433.1,2.1491]
[1750806880930,0.65727,2433.2,2433.1,0.7204]
[1750806881129,27.02013317,2433.2,2433.1,1.50339431]
[1750806881438,27.02013317,2433.2,2433.1,2.16069431]
[1750806881632,27.02013317,2433.2,2433.1,1.50339431]
[1750806882226,27.02013317,2433.2,2433.1,2.16069431]
[1750806882935,26.36286317,2433.2,2433.1,2.16069431]
[1750806883138,27.02013317,2433.2,2433.1,2.16069431]
[1750806883430,26.36286317,2433.2,2433.1,2.16069431]
[1750806884229,26.36286317,2433.2,2433.1,3.55739431]
[1750806886136,1.04986317,2433.2,2433.1,3.55739431]
[1750806886438,27.00413093,2433.4,2433.3,0.65725]
[1750806886940,27.00413093,2433.4,2433.3,1.44024431]
[1750806887132,27.00413093,2433.4,2433.3,0.78299431]
[1750806887835,0.65727,2433.2,2433.1,0.7204]
[1750806888039,32.54416666,2433.4,2433.2,0.78299431]
[1750806888040,1.70702677,2433.3,2433.2,0.78299431]
[1750806888339,1.70701727,2433.3,2433.2,1.44026431]
[1750806888539,0.65727,2433.2,2433.1,1.37768]
[1750806888741,1.70702727,2433.2,2433.1,1.37768]
[1750806888933,1.70702727,2433.2,2433.1,2.16067431]
[1750806890840,1.70702727,2433.2,2433.1,1.37768]
[1750806891139,1.70702727,2433.2,2433.1,2.16067431]
[1750806891442,1.70702727,2433.2,2433.1,1.50339431]
[1750806891738,1.70702727,2433.2,2433.1,2.16069431]
[1750806892444,1.04975727,2433.2,2433.1,2.16069431]
[1750806892739,1.04975727,2433.2,2433.1,3.54439431]
[1750806892937,25.94321,2433.5,2433.4,0.65722]
[1750806893142,26.99282935,2433.5,2433.4,0.65722]
[1750806893332,26.99282935,2433.5,2433.4,1.44021431]
[1750806894038,26.33561935,2433.5,2433.4,1.44021431]
[1750806894433,26.99280935,2433.5,2433.4,0.78299431]
[1750806894635,26.33561935,2433.5,2433.4,1.44021431]
[1750806895142,26.99280935,2433.5,2433.4,1.44021431]
[1750806895540,26.33561935,2433.5,2433.4,1.44021431]
[1750806895837,26.99280935,2433.5,2433.4,1.44021431]
[1750806896145,0.65725,2433.3,2433.2,0.65727]
[1750806896334,0.65725,2433.3,2433.2,1.44026431]
[1750806896641,1.70686935,2433.3,2433.2,1.44026431]
[1750806897337,1.70686935,2433.3,2433.2,0.65727]
[1750806897746,0.65728,2433.2,2433.1,0.65728]
[1750806897944,1.04961935,2433.2,2433.1,1.44027431]
[1750806899443,26.33661935,2433.2,2433.1,1.44027431]
[1750806900238,26.99388935,2433.2,2433.1,1.44027431]
[1750806900436,26.33661935,2433.2,2433.1,1.44027431]
[1750806902144,26.99388935,2433.2,2433.1,1.44027431]
[1750806902839,26.33661935,2433.2,2433.1,1.44027431]
[1750806903742,26.99388935,2433.2,2433.1,1.44027431]
[1750806905244,26.33661935,2433.2,2433.1,1.44027431]
[1750806905542,0.6573,2433.1,2433.0,0.7182]
[1750806905746,8.81193558,2433.1,2432.9,0.65735]
[1750806905946,1.70694935,2433.0,2432.9,0.65735]
[1750806906149,1.04961935,2433.0,2432.7,0.7234]
[1750806906340,26.32461935,2432.9,2432.8,0.78299431]
[1750806906534,0.65738,2432.8,2432.7,1.38079]
[1750806906847,1.04961935,2432.8,2432.7,1.38079]
[1750806907150,1.70699935,2432.8,2432.7,2.16378431]
[1750806907345,1.04961935,2432.8,2432.7,2.16378431]
[1750806907740,1.04961935,2432.8,2432.7,3.60428431]
[1750806908049,25.275,2432.9,2432.8,0.65738]
[1750806908350,1.04816008,2432.9,2432.8,1.44037431]
[1750806908546,1.04816008,2432.9,2432.8,2.88087431]
[1750806913045,1.70552008,2432.9,2432.8,1.44037431]
[1750806913550,0.65738,2432.8,2432.7,0.65741]
[1750806913742,1.70554008,2432.8,2432.7,1.44040431]
[1750806914144,1.70554008,2432.8,2432.7,0.78299431]
[1750806914848,1.70554008,2432.8,2432.7,1.44040431]
[1750806915149,0.65744,2432.6,2432.5,0.691]
[1750806915350,0.65752,2432.3,2432.2,3.9199]
[1750806915543,0.65752,2432.3,2432.2,4.70289431]
[1750806915942,0.65752,2432.3,2432.2,5.36042431]
[1750806916543,0.65751,2432.4,2432.3,0.65751]
[1750806916753,0.65751,2432.4,2432.3,2.14940431]
[1750806916954,1.70403206,2432.4,2432.3,2.14940431]
[1750806917952,1.70403206,2432.4,2432.3,1.49189431]
[1750806918148,1.70403206,2432.4,2432.3,2.14941431]
[1750806918452,3.06754453,2432.4,2432.3,2.14941431]
[1750806918653,2.41005453,2432.4,2432.3,2.14941431]
[1750806918857,2.41005453,2432.4,2432.3,3.48281431]
[1750806919354,3.06754453,2432.4,2432.3,3.48281431]
[1750806919748,2.41005453,2432.4,2432.3,3.48281431]
[1750806920056,3.06754453,2432.4,2432.3,3.48281431]
[1750806920358,3.06754453,2432.4,2432.3,2.14941431]
[1750806921253,3.06754453,2432.4,2432.3,1.44051431]
[1750806921455,3.06754453,2432.4,2432.3,2.14811431]
[1750806923353,3.06754453,2432.4,2432.3,0.78299431]
[1750806923551,3.06754453,2432.4,2432.0,0.7026]
[1750806923552,0.65757,2432.1,2432.0,0.7026]
[1750806923747,3.06762453,2432.1,2432.0,0.7026]
[1750806924149,0.6576,2432.0,2431.9,3.9143]
[1750806924360,25.93556,2432.2,2432.1,0.65757]
[1750806924546,25.93553,2432.3,2432.2,0.65753]
[1750806924753,0.65758,2432.1,2431.9,3.9143]
[1750806924947,3.06763453,2432.1,2432.0,0.78299431]
[1750806926257,3.06763453,2432.1,2432.0,1.44059431]
[1750806926656,3.06763453,2432.1,2432.0,0.6576]
[1750806926958,3.06764453,2432.1,2432.0,0.6576]
[1750806927255,0.65766,2431.8,2431.7,0.65767]
[1750806927453,28.34671453,2431.8,2431.7,0.65767]
[1750806927653,28.34671453,2431.8,2431.7,1.44066431]
[1750806927849,27.68905453,2431.8,2431.5,3.86553]
[1750806928050,0.65768,2431.7,2431.6,0.78299431]
[1750806928252,25.279,2431.8,2431.5,3.2078]
[1750806928253,0.65771,2431.6,2431.5,3.2078]
[1750806928456,0.65769,2431.7,2431.5,3.2078]
[1750806928657,25.281,2431.8,2431.6,0.78299431]
[1750806928859,25.281,2431.8,2431.7,2.09817431]
[1750806929152,2.41005453,2431.8,2431.7,1.44049431]
[1750806929355,0.65761,2432.0,2431.9,0.65761]
[1750806929559,0.65761,2432.0,2431.7,1.44049431]
[1750806929560,0.65763,2431.9,2431.8,2.10093431]
[1750806930052,27.69105453,2432.0,2431.9,0.65763]
[1750806930251,1.04586632,2432.0,2431.9,1.44062431]
[1750806930458,5.61785453,2432.5,2432.4,0.65749]
[1750806930658,6.6639972,2432.5,2432.4,0.65749]
[1750806930859,31.9439972,2432.5,2432.4,0.65749]
[1750806932757,3.4561972,2432.5,2432.4,0.65749]
[1750806932961,28.7451972,2432.5,2432.4,0.65749]
[1750806933258,31.9529972,2432.5,2432.4,0.65749]
[1750806937955,6.6639972,2432.5,2432.4,0.65749]
[1750806938162,27.69205453,2432.7,2432.6,0.65744]
[1750806938361,28.73713712,2432.7,2432.6,0.65744]
[1750806938552,28.73713712,2432.7,2432.6,1.44043431]
[1750806938862,3.2078,2432.8,2432.7,0.65741]
[1750806939153,29.53506983,2432.8,2432.7,3.45800431]
[1750806939353,30.19244983,2432.8,2432.7,3.45800431]
[1750806939657,30.19244983,2432.8,2432.7,2.14700431]
[1750806941261,29.53506983,2432.8,2432.7,2.14700431]
[1750806941464,26.32726983,2432.8,2432.7,2.14700431]
[1750806941958,26.32626983,2432.8,2432.7,2.14700431]
[1750806942155,1.04526983,2432.8,2432.7,4.55705884]
[1750806942362,25.281,2433.1,2432.7,1.48959431]
[1750806942553,25.281,2433.1,2433.0,0.65733]
[1750806942752,26.32642466,2433.1,2433.0,0.65733]
[1750806942948,1.04542466,2433.1,2433.0,4.64812431]
[1750806943162,25.281,2433.3,2433.2,0.65727]
[1750806943364,27.69105453,2433.4,2433.3,0.65725]
[1750806943552,1.04565632,2433.4,2433.3,1.44024431]
[1750806943856,28.4868,2433.9,2433.8,0.65711]
[1750806944061,29.5321392,2433.9,2433.8,0.65711]
[1750806944262,4.2531392,2433.9,2433.8,1.44010431]
[1750806944460,29.5321392,2433.9,2433.8,1.44010431]
[1750806945365,30.1892292,2433.9,2433.8,1.44010431]
[1750806945660,29.14389,2433.9,2433.8,1.44010431]
[1750806946058,28.4868,2433.9,2433.5,2.1213]
[1750806946252,0.65717,2433.6,2433.5,1.36568]
[1750806946655,0.65717,2433.6,2433.5,2.14867431]
[1750806946958,4.5527028,2433.7,2433.6,0.65717]
[1750806947155,33.6966028,2433.9,2433.7,0.65712]
[1750806947464,33.6966128,2433.9,2433.7,1.44011431]
[1750806947659,33.6965928,2433.9,2433.8,0.78299431]
[1750806948164,0.65711,2433.8,2433.7,0.65712]
[1750806948555,33.6966028,2433.9,2433.7,1.44011431]
[1750806948865,33.6966028,2433.9,2433.8,0.78299431]
[1750806950067,33.6966028,2433.9,2433.8,1.44010431]
[1750806950366,33.6966028,2433.9,2433.8,0.78299431]
[1750806950568,0.65714,2433.7,2433.6,2.08665]
[1750806950868,25.93014,2433.7,2433.6,2.08665]
[1750806951067,25.93014,2433.7,2433.6,2.86964431]
[1750806951661,25.273,2433.7,2433.6,2.86964431]
[1750806952176,0.65713,2433.8,2433.7,0.65713]
[1750806952359,25.92813,2433.8,2433.7,0.65713]
[1750806952669,25.271,2433.8,2433.7,1.44012431]
[1750806953469,25.92811,2433.8,2433.7,1.44012431]
[1750806956566,0.65711,2433.8,2433.7,1.44012431]
[1750806956769,3.2078,2433.9,2433.8,0.65711]
[1750806956965,11.1417028,2434.4,2433.8,2.19199431]
[1750806957166,3.2078,2434.5,2434.4,0.65695]
[1750806957366,0.65695,2434.4,2434.3,0.65696]
[1750806957766,0.65695,2434.4,2434.3,1.43995431]
[1750806957965,1.6424,2434.4,2433.9,0.7]
[1750806958166,0.65703,2434.1,2434.0,0.78299431]
[1750806958465,0.65711,2433.8,2433.7,0.65713]
[1750806958667,5.2098128,2433.8,2433.7,0.65713]
[1750806959682,0.65714,2433.7,2433.6,0.65715]
[1750806960177,0.65714,2433.7,2433.6,0.78299431]
[1750806960472,4.5527028,2433.8,2433.5,0.65719]
[1750806960473,0.65719,2433.6,2433.5,0.65719]
[1750806960674,0.65719,2433.6,2433.5,1.44018431]
[1750806961271,25.92319,2433.6,2433.5,1.44018431]
[1750806961471,25.266,2433.6,2433.5,1.44018431]
[1750806963279,4.5527028,2433.8,2433.7,0.65714]
[1750806963479,30.4748128,2433.8,2433.7,0.65714]
[1750806964280,29.8177028,2433.8,2433.7,0.65714]
[1750806964980,30.4748128,2433.8,2433.7,0.65714]
[1750806965278,29.8177028,2433.8,2433.7,0.65714]
[1750806966178,3.2078,2433.9,2433.8,0.65711]
[1750806966483,25.264,2434.1,2434.0,0.65706]
[1750806966981,30.4737028,2434.3,2434.2,0.657]
[1750806967172,31.51996083,2434.3,2434.2,0.657]
[1750806967371,31.51996083,2434.3,2434.2,1.43999431]
[1750806967878,25.264,2434.3,2434.2,1.43999431]
[1750806968581,26.31128585,2434.3,2434.2,1.43999431]
[1750806968786,1.04728585,2434.3,2434.2,1.43999431]
[1750806968981,26.31128585,2434.3,2434.2,1.43999431]
[1750806970181,3.2078,2434.4,2434.3,0.65698]
[1750806970378,0.65687,2434.7,2434.6,0.65689]
[1750806970575,26.30999078,2434.7,2434.6,0.65689]
[1750806970780,26.30999078,2434.7,2434.4,0.6715]
[1750806971079,4.5527028,2434.5,2434.4,1.32844]
[1750806971276,8.80849358,2434.5,2434.3,0.65697]
[1750806971481,0.65699,2434.3,2434.1,1.44000431]
[1750806971683,1.04869758,2434.2,2434.1,0.65701]
[1750806972785,1.04869758,2434.2,2434.1,1.44000431]
[1750806974378,29.8147028,2434.4,2434.3,0.65698]
[1750806974580,31.52084291,2434.4,2434.3,0.65698]
[1750806974780,6.25884291,2434.4,2434.3,0.65698]
[1750806975187,31.51884291,2434.4,2434.3,0.65698]
[1750806975390,0.65698,2434.3,2434.2,0.65699]
[1750806975586,1.04919011,2434.3,2434.2,0.65699]
[1750806975786,1.04919011,2434.3,2434.2,1.43998431]
[1750806976486,26.30819011,2434.3,2434.2,1.43998431]
[1750806978282,28.71447731,2434.3,2434.2,1.43998431]
[1750806978684,29.37145731,2434.3,2434.2,1.43998431]
[1750806978883,28.71447731,2434.3,2434.2,1.43998431]
[1750806979485,29.37145731,2434.3,2434.2,1.43998431]
[1750806980394,29.37145731,2434.3,2434.2,0.78299431]
[1750806980595,0.657,2434.2,2434.1,2.02161]
[1750806980796,0.65704,2434.1,2434.0,0.65704]
[1750806981087,4.11251731,2434.1,2434.0,1.44003431]
[1750806981795,4.11251731,2434.1,2434.0,0.78299431]
[1750806982093,0.65706,2434.0,2433.9,2.06287]
[1750806982493,0.65706,2434.0,2433.9,2.84586431]
[1750806982883,3.0633372,2434.1,2434.0,0.65706]
[1750806983097,4.11209252,2434.1,2434.0,1.44005431]
[1750806983392,4.11209252,2434.1,2434.0,0.65706]
[1750806983895,0.65706,2434.0,2433.9,2.06287]
[1750806984295,0.65706,2434.0,2433.9,2.84586431]
[1750806984997,0.65706,2434.0,2433.6,0.65715]
[1750806984998,0.65715,2433.7,2433.6,0.65715]
[1750806985497,1.70529483,2433.7,2433.6,1.44014431]
[1750806986498,1.04814483,2433.7,2433.6,1.44014431]
[1750806988996,1.70528483,2433.7,2433.6,1.44014431]
[1750806989196,1.04814483,2433.7,2433.6,1.44014431]
[1750806989797,1.70528483,2433.7,2433.6,1.44014431]
[1750806990091,1.04814483,2433.7,2433.6,1.44014431]
[1750806991600,1.70528483,2433.7,2433.6,1.44014431]
[1750806992101,1.70528483,2433.7,2433.6,0.78299431]
[1750806992396,0.65719,2433.6,2433.5,0.65719]
[1750806992593,0.65719,2433.5,2433.4,1.3721]
[1750806992897,4.11162203,2433.5,2433.4,2.15509431]
[1750806993100,4.11162203,2433.5,2433.4,1.3721]
[1750806993697,3.45443203,2433.5,2433.1,4.6158]
[1750806993898,1.70657346,2433.4,2433.3,0.65723]
[1750806994100,0.65725,2433.3,2433.2,2.11475431]
[1750806994501,0.65725,2433.3,2433.2,0.6745]
[1750806994502,1.7056777,2433.3,2433.2,0.6745]
[1750806995100,4.1119649,2433.3,2433.2,0.6745]
[1750806995505,0.65727,2433.2,2433.1,0.65728]
[1750806995706,0.6573,2433.1,2433.0,0.6745]
[1750806996003,3.0635872,2433.1,2433.0,1.45749431]
[1750806996206,4.11157439,2433.1,2433.0,0.6745]
[1750806996396,4.11157439,2433.1,2433.0,1.33183]
[1750806997103,3.0635872,2433.1,2433.0,1.33183]
[1750806997610,0.65734,2433.0,2432.9,0.65734]
[1750806997812,0.65734,2433.0,2432.9,1.32554]
[1750806998002,3.0636072,2433.1,2433.0,0.65733]
[1750806998203,3.0636072,2433.1,2433.0,1.44032431]
[1750806998402,3.0636072,2433.1,2433.0,0.65733]
[1750806999003,27.6642872,2433.1,2433.0,0.65733]
[1750806999203,27.6642872,2433.1,2433.0,1.99713]
[1750806999709,2.4062872,2433.1,2433.0,1.99713]
[1750806999908,27.6652872,2433.1,2433.0,1.99713]
[1750807000707,3.2078,2433.3,2433.2,0.65727]
[1750807000914,25.259,2433.3,2433.2,0.65727]
[1750807001212,0.65729,2433.2,2433.1,0.65729]
[1750807001412,3.0635772,2433.2,2433.1,0.65729]
[1750807002112,3.0635772,2433.2,2433.0,0.65731]
[1750807002113,0.65731,2433.1,2433.0,0.65731]
[1750807002315,3.0635972,2433.1,2433.0,1.44030431]
[1750807002515,2.4062872,2433.1,2432.7,3.9274]
[1750807002716,2.4062872,2432.9,2432.8,1.44037431]
[1750807002907,2.4062872,2432.9,2432.8,0.65738]
[1750807003307,2.4062872,2432.9,2432.7,4.5832]
[1750807003506,0.65738,2432.8,2432.7,6.02359431]
[1750807003814,0.65738,2432.8,2432.7,6.07359431]
[1750807004314,0.65738,2432.8,2432.7,6.02359431]
[1750807004910,0.65738,2432.8,2432.7,2.15839431]
[1750807005213,0.65744,2432.6,2432.4,0.65747]
[1750807005402,0.65744,2432.6,2432.5,1.44045431]
[1750807005608,3.0637272,2432.6,2432.5,0.65746]
[1750807005808,2.4062872,2432.6,2432.5,1.44045431]
[1750807006309,8.9892872,2432.8,2432.7,0.65738]
[1750807006508,34.2482872,2432.8,2432.7,0.65738]
[1750807006708,34.2482872,2432.8,2432.7,1.44037431]
[1750807007215,34.9056672,2432.8,2432.7,1.44037431]
[1750807007608,34.2482872,2432.8,2432.7,1.44037431]
[1750807008513,34.9056672,2432.8,2432.7,1.44037431]
[1750807010116,3.0636672,2432.8,2432.7,1.44037431]
[1750807010309,3.2078,2433.0,2432.9,0.65736]
[1750807010509,28.4678,2433.0,2432.9,0.65736]